[Event "FIDE World Rapid Chess Championship 2021"]
[White "Cuenca Jimenez, Jose Fernando"]
[Black "Alonso Rosell, Alvar"]
[WhiteFideId "2255570"]
[BlackFideId "2270544"]
[WhiteElo "2421"]
[BlackElo "2571"]
[Result "0-1"]
[Round "09"]
[TimeControl "900+10"]
[Date "2021.12.27"]
[WhiteClock "0:00:02"]
[BlackClock "0:00:25"]

1. d4 {[%clk 0:15:00]}  f5 {[%clk 0:15:00]} 2. Nc3 {[%clk 0:15:00]}  Nf6 {[%clk 0:15:00]} 3. Bg5 {[%clk 0:15:00]}  d5 {[%clk 0:15:00]} 4. e3 {[%clk 0:15:00]}  e6 {[%clk 0:15:00]} 5. Nf3 {[%clk 0:15:00]}  Nbd7 {[%clk 0:14:48]} 6. Bd3 {[%clk 0:15:17]}  c5 {[%clk 0:14:48]} 7. dxc5 {[%clk 0:13:11]}  Nxc5 {[%clk 0:13:33]} 8. Bb5+ {[%clk 0:13:11]}  Bd7 {[%clk 0:13:33]} 9. Bxd7+ {[%clk 0:13:11]}  Ncxd7 {[%clk 0:13:33]} 10. Nd4 {[%clk 0:10:52]}  Qb6 {[%clk 0:13:47]} 11. O-O {[%clk 0:10:52]}  Be7 {[%clk 0:13:12]} 12. Nce2 {[%clk 0:09:58]}  g6 {[%clk 0:09:24]} 13. c4 {[%clk 0:09:58]}  e5 {[%clk 0:09:32]} 14. Nb5 {[%clk 0:06:56]}  dxc4 {[%clk 0:07:20]} 15. Qa4 {[%clk 0:06:25]}  Qc6 {[%clk 0:06:35]} 16. Bxf6 {[%clk 0:05:57]}  Bxf6 {[%clk 0:06:35]} 17. Qxc4 {[%clk 0:04:06]}  Qxc4 {[%clk 0:05:00]} 18. Nd6+ {[%clk 0:04:06]}  Ke7 {[%clk 0:05:00]} 19. Nxc4 {[%clk 0:04:06]}  Rhc8 {[%clk 0:05:00]} 20. Rac1 {[%clk 0:04:06]}  Rc6 {[%clk 0:05:00]} 21. Na5 {[%clk 0:03:12]}  Rxc1 {[%clk 0:00:38]} 22. Rxc1 {[%clk 0:03:12]}  b6 {[%clk 0:00:38]} 23. Nb3 {[%clk 0:03:12]}  Kd6 {[%clk 0:00:38]} 24. Nc3 {[%clk 0:03:12]}  a6 {[%clk 0:00:38]} 25. e4 {[%clk 0:03:12]}  Bg5 {[%clk 0:00:38]} 26. Rd1+ {[%clk 0:03:12]}  Ke6 {[%clk 0:00:38]} 27. g3 {[%clk 0:01:31]}  Rc8 {[%clk 0:00:49]} 28. Kg2 {[%clk 0:01:31]}  Rc4 {[%clk 0:00:49]} 29. h4 {[%clk 0:01:31]}  Bh6 {[%clk 0:00:49]} 30. exf5+ {[%clk 0:00:00]}  gxf5 {[%clk 0:00:42]} 31. Kf1 {[%clk 0:00:00]}  b5 {[%clk 0:00:42]} 32. Na5 {[%clk 0:00:00]}  Rc7 {[%clk 0:00:42]} 33. Kg2 {[%clk 0:00:00]}  b4 {[%clk 0:00:42]} 34. Nd5 {[%clk 0:00:00]}  Rc5 {[%clk 0:00:42]} 35. Nb7 {[%clk 0:00:00]}  Rxd5 {[%clk 0:00:42]} 36. Nd8+ {[%clk 0:00:00]}  Kd6 {[%clk 0:00:42]} 37. Nf7+ {[%clk 0:00:02]}  Kc6 {[%clk 0:00:25]} 38. Rc1+ {[%clk 0:00:02]}  Bxc1 {[%clk 0:00:25]} 39. Nh6 {[%clk 0:00:02]} 0-1


[Site "http://www.Chess.com"]

[Event "FIDE World Rapid Chess Championship 2021"]
[White "Vakhidov, Jakhongir"]
[Black "Erigaisi, Arjun"]
[WhiteFideId "14201801"]
[BlackFideId "35009192"]
[WhiteElo "2566"]
[BlackElo "2397"]
[Result "1/2-1/2"]
[Round "09"]
[TimeControl "900+10"]
[Date "2021.12.27"]
[WhiteClock "0:06:08"]
[BlackClock "0:05:46"]

1. c4 {[%clk 0:15:00]}  e6 {[%clk 0:15:00]} 2. Nc3 {[%clk 0:15:00]}  d5 {[%clk 0:15:00]} 3. d4 {[%clk 0:15:00]}  c6 {[%clk 0:15:00]} 4. e4 {[%clk 0:15:00]}  dxe4 {[%clk 0:15:00]} 5. Nxe4 {[%clk 0:15:00]}  Bb4+ {[%clk 0:15:00]} 6. Bd2 {[%clk 0:15:00]}  Qxd4 {[%clk 0:15:00]} 7. Bxb4 {[%clk 0:15:00]}  Qxe4+ {[%clk 0:15:00]} 8. Be2 {[%clk 0:15:00]}  Na6 {[%clk 0:15:00]} 9. Ba5 {[%clk 0:15:00]}  f6 {[%clk 0:15:00]} 10. Qd8+ {[%clk 0:15:00]}  Kf7 {[%clk 0:15:00]} 11. Nf3 {[%clk 0:14:55]}  e5 {[%clk 0:16:15]} 12. Rd1 {[%clk 0:14:55]}  b6 {[%clk 0:14:19]} 13. Bc3 {[%clk 0:13:54]}  Nc5 {[%clk 0:14:19]} 14. Bb4 {[%clk 0:13:54]}  Ne7 {[%clk 0:07:21]} 15. Qxh8 {[%clk 0:09:29]}  Bb7 {[%clk 0:07:21]} 16. Rd8 {[%clk 0:09:29]}  Qb1+ {[%clk 0:06:03]} 17. Bd1 {[%clk 0:08:23]}  Qe4+ {[%clk 0:06:03]} 18. Be2 {[%clk 0:06:08]}  Qb1+ {[%clk 0:05:46]} 19. Bd1 {[%clk 0:06:08]}  Qe4+ {[%clk 0:05:46]} 1/2-1/2


[Site "http://www.Chess.com"]

[Event "FIDE World Rapid Chess Championship 2021"]
[White "Holm, Kristian Stuvik"]
[Black "Jumabayev, Rinat"]
[WhiteFideId "1508083"]
[BlackFideId "13702661"]
[WhiteElo "2409"]
[BlackElo "2562"]
[Result "1-0"]
[Round "09"]
[TimeControl "900+10"]
[Date "2021.12.27"]
[WhiteClock "0:07:30"]
[BlackClock "0:00:56"]

1. d4 {[%clk 0:15:00]}  d5 {[%clk 0:15:00]} 2. c4 {[%clk 0:15:00]}  e6 {[%clk 0:15:00]} 3. Nc3 {[%clk 0:15:00]}  Nf6 {[%clk 0:15:00]} 4. cxd5 {[%clk 0:15:00]}  exd5 {[%clk 0:15:00]} 5. Bg5 {[%clk 0:15:00]}  c6 {[%clk 0:15:00]} 6. e3 {[%clk 0:15:00]}  Be7 {[%clk 0:15:00]} 7. Qc2 {[%clk 0:15:00]}  Nbd7 {[%clk 0:15:00]} 8. Bd3 {[%clk 0:15:00]}  Nh5 {[%clk 0:15:00]} 9. Bxe7 {[%clk 0:15:00]}  Qxe7 {[%clk 0:15:00]} 10. Nge2 {[%clk 0:15:00]}  g6 {[%clk 0:15:00]} 11. h3 {[%clk 0:15:00]}  Ng7 {[%clk 0:15:00]} 12. O-O-O {[%clk 0:15:00]}  Nb6 {[%clk 0:15:00]} 13. g4 {[%clk 0:15:04]}  h5 {[%clk 0:16:29]} 14. Nf4 {[%clk 0:15:04]}  Qf6 {[%clk 0:16:29]} 15. Rdg1 {[%clk 0:15:04]}  hxg4 {[%clk 0:16:20]} 16. hxg4 {[%clk 0:13:23]}  Rxh1 {[%clk 0:16:20]} 17. Rxh1 {[%clk 0:13:23]}  Ne6 {[%clk 0:16:20]} 18. Qe2 {[%clk 0:13:39]}  Nxf4 {[%clk 0:14:17]} 19. exf4+ {[%clk 0:10:57]}  Kd8 {[%clk 0:14:17]} 20. Qe5 {[%clk 0:11:05]}  Qxe5 {[%clk 0:12:42]} 21. fxe5 {[%clk 0:11:05]}  Bxg4 {[%clk 0:12:42]} 22. Rh7 {[%clk 0:11:05]}  Ke8 {[%clk 0:12:42]} 23. Nd1 {[%clk 0:08:49]}  Kf8 {[%clk 0:07:33]} 24. Ne3 {[%clk 0:06:13]}  Kg8 {[%clk 0:07:33]} 25. Rh4 {[%clk 0:06:13]}  Bf3 {[%clk 0:07:33]} 26. Rf4 {[%clk 0:05:01]}  Bh5 {[%clk 0:06:46]} 27. Rf6 {[%clk 0:05:01]}  Nd7 {[%clk 0:06:46]} 28. Rd6 {[%clk 0:05:01]}  Nf8 {[%clk 0:06:46]} 29. Nc2 {[%clk 0:02:55]}  Bg4 {[%clk 0:06:29]} 30. Ne3 {[%clk 0:02:55]}  Bh3 {[%clk 0:06:29]} 31. f4 {[%clk 0:02:55]}  Ne6 {[%clk 0:06:29]} 32. f5 {[%clk 0:02:55]}  Nxd4 {[%clk 0:06:29]} 33. fxg6 {[%clk 0:02:26]}  Be6 {[%clk 0:05:45]} 34. Ng2 {[%clk 0:02:26]}  fxg6 {[%clk 0:04:06]} 35. Nf4 {[%clk 0:01:51]}  Re8 {[%clk 0:04:06]} 36. Bxg6 {[%clk 0:01:51]}  Re7 {[%clk 0:04:06]} 37. Nh5 {[%clk 0:01:18]}  Bd7 {[%clk 0:04:19]} 38. Nf6+ {[%clk 0:00:00]}  Kg7 {[%clk 0:04:19]} 39. Nxd7 {[%clk 0:00:00]}  Nb5 {[%clk 0:04:19]} 40. Bf5 {[%clk 0:00:00]}  Nxd6 {[%clk 0:04:19]} 41. exd6 {[%clk 0:00:00]}  Rf7 {[%clk 0:04:19]} 42. Nc5 {[%clk 0:00:00]}  Kf6 {[%clk 0:04:19]} 43. d7 {[%clk 0:00:00]}  Rf8 {[%clk 0:04:19]} 44. Ne6 {[%clk 0:00:00]}  Rh8 {[%clk 0:04:19]} 45. d8=Q+ {[%clk 0:00:00]}  Rxd8 {[%clk 0:04:19]} 46. Nxd8 {[%clk 0:00:00]}  Kxf5 {[%clk 0:04:19]} 47. Nxb7 {[%clk 0:00:00]}  Ke4 {[%clk 0:04:19]} 48. Kc2 {[%clk 0:00:00]}  Kd4 {[%clk 0:04:19]} 49. Nd8 {[%clk 0:00:00]}  Kc5 {[%clk 0:04:19]} 50. Kd3 {[%clk 0:07:30]}  a5 {[%clk 0:00:56]} 51. Ne6+ {[%clk 0:07:30]}  Kd6 {[%clk 0:00:56]} 52. Nd4 {[%clk 0:07:30]}  c5 {[%clk 0:00:56]} 53. Nb5+ {[%clk 0:07:30]}  Ke5 {[%clk 0:00:56]} 54. b3 {[%clk 0:07:30]}  Ke6 {[%clk 0:00:56]} 55. Na7 {[%clk 0:07:30]}  Kd6 {[%clk 0:00:56]} 56. Nb5+ {[%clk 0:07:30]}  Ke5 {[%clk 0:00:56]} 57. Ke3 {[%clk 0:07:30]} 1-0


[Site "http://www.Chess.com"]

[Event "FIDE World Rapid Chess Championship 2021"]
[White "Bellahcene, Bilel"]
[Black "Shoker, Samy"]
[WhiteFideId "696358"]
[BlackFideId "627143"]
[WhiteElo "2397"]
[BlackElo "2550"]
[Result "0-1"]
[Round "09"]
[TimeControl "900+10"]
[Date "2021.12.27"]
[WhiteClock "0:01:01"]
[BlackClock "0:00:44"]

1. d4 {[%clk 0:15:00]}  g6 {[%clk 0:15:00]} 2. e4 {[%clk 0:15:00]}  Bg7 {[%clk 0:15:00]} 3. Nc3 {[%clk 0:15:00]}  d6 {[%clk 0:15:00]} 4. Be3 {[%clk 0:15:00]}  a6 {[%clk 0:15:00]} 5. h4 {[%clk 0:15:00]}  Nf6 {[%clk 0:15:00]} 6. f3 {[%clk 0:15:00]}  b5 {[%clk 0:15:00]} 7. Qd2 {[%clk 0:15:00]}  h5 {[%clk 0:15:00]} 8. O-O-O {[%clk 0:15:00]}  c6 {[%clk 0:15:00]} 9. Kb1 {[%clk 0:15:00]}  b4 {[%clk 0:15:00]} 10. Nce2 {[%clk 0:15:00]}  a5 {[%clk 0:15:00]} 11. Nf4 {[%clk 0:15:00]}  Qc7 {[%clk 0:15:00]} 12. e5 {[%clk 0:15:00]}  Nd5 {[%clk 0:15:00]} 13. e6 {[%clk 0:15:00]}  Bxe6 {[%clk 0:11:10]} 14. Nxe6 {[%clk 0:11:22]}  fxe6 {[%clk 0:11:10]} 15. Bd3 {[%clk 0:11:22]}  Qb6 {[%clk 0:11:10]} 16. Bxg6+ {[%clk 0:11:22]}  Kd7 {[%clk 0:11:10]} 17. Ne2 {[%clk 0:11:22]}  Na6 {[%clk 0:11:10]} 18. Rhe1 {[%clk 0:11:22]}  Nac7 {[%clk 0:11:10]} 19. Qd3 {[%clk 0:10:53]}  a4 {[%clk 0:11:34]} 20. Bc1 {[%clk 0:10:53]}  a3 {[%clk 0:10:05]} 21. b3 {[%clk 0:08:21]}  Nb5 {[%clk 0:10:03]} 22. Bf7 {[%clk 0:08:21]}  Raf8 {[%clk 0:10:08]} 23. Qg6 {[%clk 0:07:22]}  Bf6 {[%clk 0:06:52]} 24. Rd3 {[%clk 0:07:22]}  Nbc7 {[%clk 0:06:49]} 25. Nf4 {[%clk 0:03:08]}  Nxf4 {[%clk 0:00:34]} 26. Bxf4 {[%clk 0:03:08]}  Kd8 {[%clk 0:00:34]} 27. Bg5 {[%clk 0:03:08]}  Bxg5 {[%clk 0:00:34]} 28. hxg5 {[%clk 0:03:08]}  Nd5 {[%clk 0:00:34]} 29. Qxe6 {[%clk 0:03:08]}  Qc7 {[%clk 0:00:34]} 30. g6 {[%clk 0:03:08]}  Nf4 {[%clk 0:00:34]} 31. Qf5 {[%clk 0:03:08]}  Nxd3 {[%clk 0:00:34]} 32. Qxd3 {[%clk 0:03:08]}  d5 {[%clk 0:00:34]} 33. Qf5 {[%clk 0:01:12]}  Rhg8 {[%clk 0:00:19]} 34. Qxh5 {[%clk 0:01:12]}  Qg3 {[%clk 0:00:19]} 35. Qe5 {[%clk 0:01:12]}  Qxe5 {[%clk 0:00:19]} 36. dxe5 {[%clk 0:01:12]}  Rg7 {[%clk 0:00:19]} 37. e6 {[%clk 0:01:12]}  Rh8 {[%clk 0:00:19]} 38. Kc1 {[%clk 0:01:12]}  Rh2 {[%clk 0:00:19]} 39. Rg1 {[%clk 0:01:12]}  Kc7 {[%clk 0:00:19]} 40. Kd2 {[%clk 0:01:12]}  Kd6 {[%clk 0:00:19]} 41. f4 {[%clk 0:01:12]}  c5 {[%clk 0:00:19]} 42. Ke3 {[%clk 0:01:12]}  Rh6 {[%clk 0:00:19]} 43. Kf3 {[%clk 0:01:01]}  Rh8 {[%clk 0:00:44]} 44. f5 {[%clk 0:01:01]}  Ke5 {[%clk 0:00:44]} 45. Kg4 {[%clk 0:01:01]}  Kf6 {[%clk 0:00:44]} 46. Kf4 {[%clk 0:01:01]}  Rh2 {[%clk 0:00:44]} 47. g4 {[%clk 0:01:01]}  Rf2+ {[%clk 0:00:44]} 48. Ke3 {[%clk 0:01:01]}  Rxc2 {[%clk 0:00:44]} 49. g5+ {[%clk 0:01:01]}  Kxf5 {[%clk 0:00:44]} 0-1


[Site "http://www.Chess.com"]

[Event "FIDE World Rapid Chess Championship 2021"]
[White "Durarbayli, Vasif"]
[Black "Mikhalevski, Victor"]
[WhiteFideId "13402935"]
[BlackFideId "2801914"]
[WhiteElo "2532"]
[BlackElo "2366"]
[Result "0-1"]
[Round "09"]
[TimeControl "900+10"]
[Date "2021.12.27"]
[WhiteClock "0:00:15"]
[BlackClock "0:01:43"]

1. e4 {[%clk 0:15:00]}  e5 {[%clk 0:15:00]} 2. Nc3 {[%clk 0:15:00]}  Nf6 {[%clk 0:15:00]} 3. Bc4 {[%clk 0:15:00]}  Nc6 {[%clk 0:15:00]} 4. d3 {[%clk 0:15:00]}  Bc5 {[%clk 0:15:00]} 5. f4 {[%clk 0:15:00]}  d6 {[%clk 0:15:00]} 6. Nf3 {[%clk 0:15:00]}  O-O {[%clk 0:15:00]} 7. f5 {[%clk 0:15:00]}  Nd4 {[%clk 0:15:00]} 8. Bg5 {[%clk 0:15:00]}  c6 {[%clk 0:15:00]} 9. a3 {[%clk 0:15:00]}  d5 {[%clk 0:03:37]} 10. Ba2 {[%clk 0:11:05]}  Qd6 {[%clk 0:13:03]} 11. Qd2 {[%clk 0:09:04]}  h6 {[%clk 0:09:57]} 12. Bxf6 {[%clk 0:08:41]}  Qxf6 {[%clk 0:09:57]} 13. O-O-O {[%clk 0:08:41]}  Bb6 {[%clk 0:09:55]} 14. Rdf1 {[%clk 0:05:06]}  Ba5 {[%clk 0:07:59]} 15. exd5 {[%clk 0:05:06]}  cxd5 {[%clk 0:06:04]} 16. b4 {[%clk 0:04:40]}  Nxf3 {[%clk 0:06:04]} 17. gxf3 {[%clk 0:02:46]}  Bd8 {[%clk 0:05:22]} 18. Nxd5 {[%clk 0:02:46]}  Qxf5 {[%clk 0:05:22]} 19. Rhg1 {[%clk 0:02:46]}  Kh8 {[%clk 0:05:22]} 20. f4 {[%clk 0:02:46]}  Be6 {[%clk 0:05:22]} 21. Qg2 {[%clk 0:02:10]}  g6 {[%clk 0:04:12]} 22. Ne3 {[%clk 0:02:10]}  Qh3 {[%clk 0:04:12]} 23. Bxe6 {[%clk 0:01:16]}  Qxe3+ {[%clk 0:03:20]} 24. Kb1 {[%clk 0:01:16]}  exf4 {[%clk 0:03:20]} 25. Bxf7 {[%clk 0:01:16]}  g5 {[%clk 0:03:20]} 26. Re1 {[%clk 0:00:00]}  Qd4 {[%clk 0:02:41]} 27. Re4 {[%clk 0:00:00]}  f3 {[%clk 0:02:41]} 28. Qg4 {[%clk 0:00:00]}  Qg7 {[%clk 0:02:41]} 29. Bb3 {[%clk 0:00:00]}  f2 {[%clk 0:02:41]} 30. Rf1 {[%clk 0:00:00]}  Qc3 {[%clk 0:02:41]} 31. Qh5 {[%clk 0:00:00]}  Kg7 {[%clk 0:02:41]} 32. Ka2 {[%clk 0:00:00]}  Bf6 {[%clk 0:02:41]} 33. d4 {[%clk 0:00:22]}  Rae8 {[%clk 0:01:44]} 34. Rxe8 {[%clk 0:00:22]}  Qxd4 {[%clk 0:01:44]} 35. c3 {[%clk 0:00:22]}  Qd2+ {[%clk 0:01:44]} 36. Kb1 {[%clk 0:00:22]}  Qxc3 {[%clk 0:01:44]} 37. Rxf2 {[%clk 0:00:22]}  Qxb3+ {[%clk 0:01:44]} 38. Kc1 {[%clk 0:00:22]}  Qxa3+ {[%clk 0:01:44]} 39. Kd2 {[%clk 0:00:22]}  Qxb4+ {[%clk 0:01:44]} 40. Kc1 {[%clk 0:00:22]}  Qa3+ {[%clk 0:01:44]} 41. Kd2 {[%clk 0:00:22]}  Bc3+ {[%clk 0:01:44]} 42. Ke2 {[%clk 0:00:15]}  Qa6+ {[%clk 0:01:43]} 43. Ke3 {[%clk 0:00:15]}  Qb6+ {[%clk 0:01:43]} 44. Kd3 {[%clk 0:00:15]}  Qd4+ {[%clk 0:01:43]} 0-1


[Site "http://www.Chess.com"]

[Event "FIDE World Rapid Chess Championship 2021"]
[White "Klekowski, Maciej"]
[Black "Klimkowski, Jan"]
[WhiteFideId "1132717"]
[BlackFideId "21856222"]
[WhiteElo "2528"]
[BlackElo "2211"]
[Result "1-0"]
[Round "09"]
[TimeControl "900+10"]
[Date "2021.12.27"]
[WhiteClock "0:05:56"]
[BlackClock "0:06:12"]

1. e4 {[%clk 0:15:00]}  c5 {[%clk 0:15:00]} 2. Nf3 {[%clk 0:15:00]}  d6 {[%clk 0:15:00]} 3. Bb5+ {[%clk 0:15:00]}  Nd7 {[%clk 0:15:00]} 4. Ba4 {[%clk 0:15:00]}  Nf6 {[%clk 0:15:00]} 5. O-O {[%clk 0:15:00]}  a6 {[%clk 0:15:00]} 6. c4 {[%clk 0:15:00]}  g6 {[%clk 0:15:00]} 7. Nc3 {[%clk 0:15:00]}  Bg7 {[%clk 0:15:00]} 8. d3 {[%clk 0:15:00]}  O-O {[%clk 0:15:00]} 9. h3 {[%clk 0:15:00]}  Ne8 {[%clk 0:15:49]} 10. d4 {[%clk 0:15:04]}  cxd4 {[%clk 0:15:49]} 11. Nxd4 {[%clk 0:15:04]}  Ne5 {[%clk 0:15:49]} 12. Bb3 {[%clk 0:15:04]}  Nc7 {[%clk 0:15:49]} 13. Be3 {[%clk 0:14:34]}  Ne6 {[%clk 0:14:11]} 14. f4 {[%clk 0:14:34]}  Nc6 {[%clk 0:14:11]} 15. Nxe6 {[%clk 0:13:31]}  Bxe6 {[%clk 0:14:12]} 16. f5 {[%clk 0:13:31]}  Bc8 {[%clk 0:14:12]} 17. Nd5 {[%clk 0:13:31]}  Bxb2 {[%clk 0:14:12]} 18. Rb1 {[%clk 0:13:31]}  Be5 {[%clk 0:14:12]} 19. Bb6 {[%clk 0:11:44]}  Qd7 {[%clk 0:12:39]} 20. Kh1 {[%clk 0:11:44]}  e6 {[%clk 0:12:36]} 21. Nc7 {[%clk 0:09:29]}  Rb8 {[%clk 0:10:43]} 22. f6 {[%clk 0:09:29]}  d5 {[%clk 0:06:39]} 23. cxd5 {[%clk 0:06:38]}  Bxc7 {[%clk 0:06:39]} 24. Qd2 {[%clk 0:06:38]}  Kh8 {[%clk 0:06:39]} 25. Qh6 {[%clk 0:06:38]}  Rg8 {[%clk 0:06:39]} 26. dxe6 {[%clk 0:06:38]}  fxe6 {[%clk 0:06:39]} 27. f7 {[%clk 0:06:38]}  Bd6 {[%clk 0:06:12]} 28. fxg8=Q+ {[%clk 0:05:56]}  Kxg8 {[%clk 0:06:12]} 29. Rbd1 {[%clk 0:05:56]}  Qe7 {[%clk 0:06:12]} 30. Rxd6 {[%clk 0:05:56]}  Qxd6 {[%clk 0:06:12]} 31. Bc7 {[%clk 0:05:56]} 1-0


[Site "http://www.Chess.com"]

[Event "FIDE World Rapid Chess Championship 2021"]
[White "Antipov, Mikhail Al."]
[Black "Sindarov, Javokhir"]
[WhiteFideId "4107012"]
[BlackFideId "14205483"]
[WhiteElo "2644"]
[BlackElo "2353"]
[Result "1-0"]
[Round "09"]
[TimeControl "900+10"]
[Date "2021.12.27"]
[WhiteClock "0:00:20"]
[BlackClock "0:00:14"]

1. e4 {[%clk 0:15:00]}  e5 {[%clk 0:15:00]} 2. Nf3 {[%clk 0:15:00]}  Nc6 {[%clk 0:15:00]} 3. Bc4 {[%clk 0:15:00]}  Nf6 {[%clk 0:15:00]} 4. d3 {[%clk 0:15:00]}  h6 {[%clk 0:15:00]} 5. h3 {[%clk 0:15:00]}  d6 {[%clk 0:15:00]} 6. a4 {[%clk 0:15:00]}  g6 {[%clk 0:15:00]} 7. Nc3 {[%clk 0:15:00]}  Bg7 {[%clk 0:15:00]} 8. O-O {[%clk 0:15:00]}  O-O {[%clk 0:15:00]} 9. Re1 {[%clk 0:15:00]}  Be6 {[%clk 0:15:00]} 10. Bxe6 {[%clk 0:15:00]}  fxe6 {[%clk 0:15:00]} 11. Ne2 {[%clk 0:15:00]}  Nh5 {[%clk 0:15:00]} 12. Ng3 {[%clk 0:15:00]}  Nf4 {[%clk 0:15:00]} 13. c3 {[%clk 0:15:00]}  g5 {[%clk 0:15:16]} 14. Bxf4 {[%clk 0:16:15]}  gxf4 {[%clk 0:15:16]} 15. Nh5 {[%clk 0:16:15]}  Bh8 {[%clk 0:13:36]} 16. g4 {[%clk 0:12:41]}  fxg3 {[%clk 0:13:36]} 17. fxg3 {[%clk 0:12:41]}  Kh7 {[%clk 0:13:36]} 18. Qe2 {[%clk 0:12:41]}  Bf6 {[%clk 0:09:41]} 19. Rf1 {[%clk 0:14:17]}  Qe7 {[%clk 0:07:11]} 20. b4 {[%clk 0:12:09]}  Rae8 {[%clk 0:05:47]} 21. Rf2 {[%clk 0:12:09]}  Nb8 {[%clk 0:04:52]} 22. Raf1 {[%clk 0:10:54]}  Nd7 {[%clk 0:04:52]} 23. h4 {[%clk 0:08:18]}  Kh8 {[%clk 0:05:00]} 24. Qe3 {[%clk 0:07:41]}  Qh7 {[%clk 0:03:00]} 25. Nxf6 {[%clk 0:07:41]}  Rxf6 {[%clk 0:03:00]} 26. Nh2 {[%clk 0:04:59]}  Qg7 {[%clk 0:02:50]} 27. Kg2 {[%clk 0:03:10]}  Rg8 {[%clk 0:02:10]} 28. Ng4 {[%clk 0:03:10]}  Rxf2+ {[%clk 0:02:06]} 29. Rxf2 {[%clk 0:01:04]}  h5 {[%clk 0:02:06]} 30. Nh2 {[%clk 0:01:04]}  b6 {[%clk 0:02:06]} 31. Rf3 {[%clk 0:01:04]}  a5 {[%clk 0:02:06]} 32. b5 {[%clk 0:01:04]}  Nf6 {[%clk 0:02:06]} 33. Qf2 {[%clk 0:01:04]}  Rf8 {[%clk 0:02:06]} 34. Nf1 {[%clk 0:01:16]}  Kg8 {[%clk 0:00:33]} 35. Nd2 {[%clk 0:01:16]}  d5 {[%clk 0:00:33]} 36. Qe2 {[%clk 0:01:16]}  Ng4 {[%clk 0:00:33]} 37. Nf1 {[%clk 0:01:16]}  Rf7 {[%clk 0:00:33]} 38. Ne3 {[%clk 0:01:16]}  Rxf3 {[%clk 0:00:16]} 39. Qxf3 {[%clk 0:00:29]}  Nxe3+ {[%clk 0:00:16]} 40. Qxe3 {[%clk 0:00:29]}  Qf6 {[%clk 0:00:16]} 41. Qg5+ {[%clk 0:00:29]}  Kf7 {[%clk 0:00:16]} 42. Qxh5+ {[%clk 0:00:29]}  Kg7 {[%clk 0:00:16]} 43. Qg5+ {[%clk 0:00:29]}  Qxg5 {[%clk 0:00:16]} 44. hxg5 {[%clk 0:00:29]}  Kg6 {[%clk 0:00:16]} 45. g4 {[%clk 0:00:29]}  Kxg5 {[%clk 0:00:16]} 46. Kg3 {[%clk 0:00:29]}  Kg6 {[%clk 0:00:14]} 47. Kh4 {[%clk 0:00:20]}  d4 {[%clk 0:00:14]} 48. c4 {[%clk 0:00:20]}  Kh6 {[%clk 0:00:14]} 49. g5+ {[%clk 0:00:20]}  Kg6 {[%clk 0:00:14]} 50. Kg4 {[%clk 0:00:20]}  Kf7 {[%clk 0:00:14]} 51. Kh5 {[%clk 0:00:20]}  Kg7 {[%clk 0:00:14]} 52. g6 {[%clk 0:00:20]} 1-0


[Site "http://www.Chess.com"]

[Event "FIDE World Rapid Chess Championship 2021"]
[White "Halkias, Stelios"]
[Black "Aziz, Husain"]
[WhiteFideId "4201809"]
[BlackFideId "12100293"]
[WhiteElo "2576"]
[BlackElo "2430"]
[Result "1-0"]
[Round "09"]
[TimeControl "900+10"]
[Date "2021.12.27"]
[WhiteClock "0:05:32"]
[BlackClock "0:03:21"]

1. Nf3 {[%clk 0:15:00]}  d5 {[%clk 0:15:00]} 2. d4 {[%clk 0:15:00]}  Nf6 {[%clk 0:15:00]} 3. c4 {[%clk 0:15:00]}  e6 {[%clk 0:15:00]} 4. g3 {[%clk 0:15:00]}  Be7 {[%clk 0:15:00]} 5. Bg2 {[%clk 0:15:00]}  O-O {[%clk 0:15:00]} 6. O-O {[%clk 0:15:00]}  dxc4 {[%clk 0:15:00]} 7. Qc2 {[%clk 0:15:00]}  a6 {[%clk 0:15:00]} 8. a4 {[%clk 0:15:00]}  Bd7 {[%clk 0:15:00]} 9. Rd1 {[%clk 0:15:00]}  Bc6 {[%clk 0:15:00]} 10. Nc3 {[%clk 0:15:00]}  Nd5 {[%clk 0:15:00]} 11. e4 {[%clk 0:15:00]}  Nb4 {[%clk 0:15:00]} 12. Qe2 {[%clk 0:15:00]}  Nd3 {[%clk 0:15:00]} 13. Be3 {[%clk 0:15:00]}  Bb4 {[%clk 0:15:00]} 14. Ne1 {[%clk 0:15:00]}  Nxe1 {[%clk 0:13:31]} 15. Qxe1 {[%clk 0:12:51]}  b5 {[%clk 0:13:31]} 16. Qe2 {[%clk 0:12:51]}  Qe8 {[%clk 0:11:36]} 17. d5 {[%clk 0:11:59]}  Bb7 {[%clk 0:11:36]} 18. axb5 {[%clk 0:10:22]}  axb5 {[%clk 0:10:51]} 19. Rxa8 {[%clk 0:10:22]}  Bxa8 {[%clk 0:10:51]} 20. Ra1 {[%clk 0:10:22]}  Nd7 {[%clk 0:10:51]} 21. Nxb5 {[%clk 0:10:22]}  Qb8 {[%clk 0:11:04]} 22. Qxc4 {[%clk 0:10:25]}  Bd6 {[%clk 0:11:04]} 23. dxe6 {[%clk 0:09:43]}  Ne5 {[%clk 0:07:14]} 24. exf7+ {[%clk 0:09:43]}  Kh8 {[%clk 0:07:14]} 25. Qe2 {[%clk 0:09:43]}  Bc6 {[%clk 0:07:14]} 26. Nxd6 {[%clk 0:08:56]}  cxd6 {[%clk 0:06:31]} 27. Bd4 {[%clk 0:08:56]}  Nxf7 {[%clk 0:06:31]} 28. Rc1 {[%clk 0:08:56]}  Bb5 {[%clk 0:06:31]} 29. Qd2 {[%clk 0:08:56]}  h6 {[%clk 0:06:12]} 30. f4 {[%clk 0:06:56]}  Ba6 {[%clk 0:06:12]} 31. h3 {[%clk 0:06:56]}  Nd8 {[%clk 0:06:12]} 32. Kh2 {[%clk 0:06:14]}  Ne6 {[%clk 0:04:20]} 33. Bc3 {[%clk 0:06:14]}  Nc5 {[%clk 0:04:20]} 34. Rd1 {[%clk 0:06:14]}  Rd8 {[%clk 0:04:20]} 35. f5 {[%clk 0:06:14]}  Kh7 {[%clk 0:03:21]} 36. f6 {[%clk 0:05:32]}  gxf6 {[%clk 0:03:21]} 37. Qf4 {[%clk 0:05:32]} 1-0


[Site "http://www.Chess.com"]